bitfinex-derivatives/quotes_SOLF0:USTF0_20251006
["timestamp","ask_amount","ask_price","bid_price","bid_amount"]
[1759768842670,104.32986966,235.54,235.5,7.97]
[1759768842873,104.32986966,235.54,235.49,3.5698159]
[1759768843271,104.32986966,235.54,235.5,7.97]
[1759768844073,104.32986966,235.54,235.49,3.5698159]
[1759768844381,104.32986966,235.54,235.48,3.5698159]
[1759768845372,3.8194,235.53,235.48,3.5698159]
[1759768845580,3.8194,235.53,235.47,3.5698159]
[1759768848187,3.8194,235.53,235.46,11.5398159]
[1759768848883,104.32986966,235.54,235.46,3.5698159]
[1759768849076,1.9373876,235.52,235.46,3.5698159]
[1759768849286,1.9373876,235.52,235.45,3.5698159]
[1759768849478,1.9373876,235.49,235.45,3.5698159]
[1759768849781,1.9373876,235.46,235.42,3.5698159]
[1759768850184,1.9373876,235.46,235.41,3.5698159]
[1759768850380,1.9373876,235.46,235.39,3.5698159]
[1759768850583,3.8208,235.44,235.39,3.5698159]
[1759768850982,1.96676665,235.46,235.39,3.5698159]
[1759768851187,0.02937905,235.46,235.39,3.5698159]
[1759768851783,12.75383865,235.46,235.39,3.5698159]
[1759768852088,12.75383865,235.46,235.35,3.5698159]
[1759768852287,12.75383865,235.46,235.34,3.5698159]
[1759768852486,59.4336,235.44,235.34,3.5698159]
[1759768852686,104.32,235.43,235.33,11.4298159]
[1759768853183,104.32,235.43,235.33,7.86]
[1759768853184,3.8211,235.42,235.33,7.86]
[1759768853489,104.32,235.43,235.33,7.86]
[1759768853889,3.84893184,235.4,235.33,7.86]
[1759768854987,3.8217,235.38,235.29,3.5698159]
[1759768855184,104.32,235.37,235.29,7.86]
[1759768856489,108.142,235.37,235.29,7.86]
[1759768857797,3.8221,235.36,235.29,7.86]
[1759768858694,3.8223,235.34,235.29,7.86]
[1759768858994,3.8223,235.34,235.24,7.86]
[1759768859194,3.8226,235.32,235.24,7.86]
[1759768859393,104.34,235.31,235.24,7.86]
[1759768860588,104.34,235.31,235.26,7.86]
[1759768860589,0.03158545,235.3,235.26,7.86]
[1759768860994,0.03158545,235.3,235.28,7.86]
[1759768862192,0.03158545,235.3,235.27,3.8234]
[1759768862498,0.03158545,235.3,235.26,7.86]
[1759768863095,0.03158545,235.3,235.25,7.86]
[1759768863295,0.03158545,235.3,235.26,3.03133802]
[1759768863599,0.03158545,235.3,235.26,6.85493802]
[1759768863797,0.03158545,235.3,235.27,7.86]
[1759768863993,0.03158545,235.3,235.26,6.85493802]
[1759768864197,0.03158545,235.3,235.29,7.86]
[1759768864400,93.44801826,235.53,235.29,7.86]
[1759768864401,23.52,235.38,235.29,7.86]
[1759768864601,41.12,235.39,235.33,3.03133802]
[1759768865005,41.12,235.39,235.34,7.86]
[1759768865210,41.12,235.39,235.33,3.03133802]
[1759768865409,41.12,235.39,235.33,10.89133802]
[1759768865610,41.12,235.39,235.33,7.86]
[1759768865811,41.12,235.39,235.34,0.0285238]
[1759768866112,41.12,235.39,235.34,7.8885238]
[1759768866804,41.12,235.39,235.34,0.0285238]
[1759768867602,3.8218,235.38,235.34,0.0285238]
[1759768867804,3.03133802,235.45,235.34,0.0285238]
[1759768868002,104.36,235.44,235.34,0.0285238]
[1759768868204,3.8215,235.4,235.34,0.0285238]
[1759768868813,3.8217,235.38,235.34,0.0285238]
[1759768869013,104.36,235.37,235.34,0.0285238]
[1759768871314,104.34,235.36,235.34,0.0285238]
[1759768871514,104.34,235.35,235.34,0.0285238]
[1759768871812,3.8213,235.41,235.34,0.0285238]
[1759768872022,3.8215,235.4,235.34,0.0285238]
[1759768872207,104.34,235.39,235.34,0.0285238]
[1759768872405,59.4363,235.43,235.34,0.0285238]
[1759768872610,104.34,235.42,235.34,0.0285238]
[1759768873114,104.34,235.41,235.34,0.0285238]
[1759768873621,3.822,235.37,235.34,0.0285238]
[1759768874409,3.8221,235.36,235.34,0.0285238]
[1759768875514,104.34,235.35,235.34,0.0285238]
[1759768877810,3.8221,235.36,235.34,0.0285238]
[1759768878318,104.34,235.35,235.34,0.0285238]
[1759768878524,104.34,235.35,235.25,11.2498159]
[1759768878525,3.8231,235.29,235.25,7.68]
[1759768878716,104.34,235.28,235.25,7.68]
[1759768879220,104.34,235.28,235.22,3.5698159]
[1759768879619,108.1633,235.28,235.22,11.2498159]
[1759768880011,0.027294,235.27,235.23,7.68]
[1759768880215,3.850894,235.27,235.23,7.68]
[1759768880723,3.8238,235.26,235.23,7.68]
[1759768881120,3.8238,235.26,235.2,7.68]
[1759768881316,0.027294,235.27,235.2,7.68]
[1759768881918,104.34,235.26,235.2,7.68]
[1759768883722,3.8238,235.25,235.19,10.71133802]
[1759768884119,3.8241,235.24,235.17,11.30885517]
[1759768884313,104.34,235.26,235.18,7.68]
[1759768884924,3.8242,235.23,235.18,7.68]
[1759768885127,104.34,235.26,235.14,7.68]
[1759768885426,0.02928118,235.24,235.14,7.68]
[1759768886625,3.8245,235.21,235.14,7.68]
[1759768886824,104.34,235.2,235.14,7.68]
[1759768888222,102.14573756,235.2,235.14,7.68]
[1759768889923,0.02928118,235.24,235.16,3.03133802]
[1759768890118,0.02928118,235.24,235.17,7.68]
[1759768890318,0.02928118,235.24,235.22,3.8242]
[1759768890523,309.38,235.32,235.23,7.68]
[1759768890725,104.36,235.31,235.24,3.03133802]
[1759768890928,104.36,235.31,235.25,7.68]
[1759768891524,0.03003463,235.3,235.25,7.68]
[1759768891725,0.03003463,235.3,235.26,7.68]
[1759768892024,0.03003463,235.3,235.24,3.03133802]
[1759768892232,0.03003463,235.3,235.25,7.68]
[1759768892528,0.03003463,235.3,235.24,6.85513802]
[1759768892726,0.03003463,235.3,235.25,7.68]
[1759768892922,0.03003463,235.3,235.24,6.85513802]
[1759768893123,0.03003463,235.3,235.25,7.68]
[1759768893330,0.03003463,235.3,235.24,6.85513802]
[1759768893629,0.03003463,235.3,235.25,7.68]
[1759768893927,0.03003463,235.3,235.24,6.85513802]
[1759768894133,0.03003463,235.3,235.24,14.53513802]
[1759768894524,0.03003463,235.3,235.24,11.5038]
[1759768896127,0.03003463,235.3,235.25,7.51]
[1759768896519,0.03003463,235.3,235.26,3.8235]
[1759768896724,0.03003463,235.3,235.27,3.03133802]
[1759768897130,0.03003463,235.3,235.27,7.51]
[1759768897325,0.03003463,235.3,235.26,6.60115392]
[1759768897624,0.03003463,235.3,235.27,7.51]
[1759768898028,59.44,235.42,235.27,7.51]
[1759768898331,163.7811,235.41,235.29,7.51]
[1759768898532,3.8221,235.36,235.29,7.51]
[1759768898724,104.34,235.35,235.29,7.51]
[1759768899531,104.34,235.35,235.3,0.02684954]
[1759768899827,62.49033802,235.34,235.27,3.52190354]
[1759768900032,59.4641,235.32,235.2,12.25893856]
[1759768900327,104.32,235.31,235.21,7.51]
[1759768900628,108.1429,235.31,235.21,7.51]
[1759768900826,104.32,235.31,235.21,7.51]
[1759768901426,3.85207971,235.28,235.21,7.51]
[1759768901631,0.02877971,235.28,235.21,7.51]
[1759768901825,0.02877971,235.28,235.19,8.15740035]
[1759768902226,59.4767,235.27,235.19,8.15740035]
[1759768902426,104.32,235.26,235.16,12.25893856]
[1759768903632,3.8244,235.22,235.16,12.25893856]
[1759768903833,104.32,235.21,235.17,7.51]
[1759768906125,104.32,235.21,235.15,4.74893856]
[1759768906326,104.32,235.21,235.15,7.51]
[1759768906836,0.02696104,235.2,235.15,3.8252]
[1759768907038,0.02696104,235.2,235.14,12.25893856]
[1759768907228,0.02696104,235.2,235.14,7.51]
[1759768907533,0.02696104,235.2,235.14,11.3355]
[1759768907730,0.02696104,235.2,235.14,3.8255]
[1759768908328,0.02696104,235.2,235.15,7.36]
[1759768908530,0.02696104,235.2,235.14,3.8255]
[1759768909535,0.02696104,235.2,235.15,7.36]
[1759768909731,0.02696104,235.2,235.14,3.8255]
[1759768909930,0.02696104,235.2,235.14,11.1855]
[1759768911330,0.02696104,235.2,235.15,12.10893856]
[1759768911531,16.66,235.26,235.19,7.36]
[1759768911724,16.66,235.26,235.21,3.8243]
[1759768912528,16.66,235.26,235.22,7.36]
[1759768912934,16.66,235.26,235.21,3.85250615]
[1759768913133,16.66,235.26,235.22,7.36]
[1759768913931,16.66,235.26,235.21,5.7945974]
[1759768914132,16.66,235.26,235.22,7.36]
[1759768914334,16.66,235.26,235.21,5.7945974]
[1759768914534,16.66,235.26,235.22,7.36]
[1759768915739,16.66,235.26,235.21,5.7945974]
[1759768915940,16.66,235.26,235.22,7.36]
[1759768916940,16.66,235.26,235.21,5.7945974]
[1759768917531,16.66,235.26,235.21,1.9702974]
[1759768917735,16.66,235.26,235.22,7.36]
[1759768917938,16.66,235.26,235.21,1.9702974]
[1759768918241,16.66,235.26,235.22,7.36]
[1759768918740,16.66,235.26,235.21,0.02820615]
[1759768919136,16.66,235.26,235.21,7.38820615]
[1759768919540,20.4837,235.26,235.21,7.38820615]
[1759768919739,16.66,235.26,235.21,7.38820615]
[1759768920242,16.66,235.26,235.22,7.36]
[1759768921342,16.66,235.26,235.21,7.38820615]
[1759768924637,16.66,235.26,235.21,0.02820615]
[1759768924936,16.66,235.26,235.21,7.38820615]
[1759768925136,16.66,235.26,235.21,0.02820615]
[1759768925338,20.4837,235.26,235.21,0.02820615]
[1759768925537,18.60209125,235.26,235.21,0.02820615]
[1759768926152,3.8242,235.22,235.21,0.02820615]
[1759768926835,309.42,235.32,235.21,0.02820615]
[1759768927032,1.94209125,235.3,235.21,1.9702974]
[1759768927236,104.3,235.31,235.21,1.9702974]
[1759768927636,104.3,235.3,235.21,1.9702974]
[1759768927943,104.3,235.3,235.21,0.02820615]
[1759768928144,3.8232,235.29,235.22,3.8242]
[1759768929845,3.8232,235.29,235.21,0.02820615]
[1759768932348,12.28590234,235.45,235.26,1.94209125]
[1759768932548,12.50173836,235.46,235.32,1.94209125]
[1759768932846,3.8209,235.43,235.35,1.94209125]
[1759768933443,3.8209,235.43,235.37,0.03202466]
[1759768933645,49.6,235.45,235.37,0.03202466]
[1759768933839,104.3,235.44,235.37,7.39202466]
[1759768934149,104.3,235.44,235.38,1.94209125]
[1759768934339,8.01183742,235.47,235.39,7.36]
[1759768934544,104.28,235.45,235.39,7.36]
[1759768935350,104.28,235.45,235.42,7.36]
[1759768935547,104.28,235.45,235.41,1.94209125]
[1759768935742,104.28,235.45,235.42,7.36]
[1759768939650,3.8194,235.52,235.42,7.52]
[1759768939952,104.26,235.51,235.45,1.94209125]
[1759768940649,104.26,235.51,235.46,0.0269016]
[1759768942054,104.26,235.51,235.46,7.5469016]
[1759768946654,104.26,235.51,235.47,7.52]
[1759768949063,108.0795,235.51,235.46,0.0269016]
[1759768950066,3.8202,235.47,235.46,0.0269016]
[1759768950261,163.6277,235.47,235.35,7.52]
[1759768950464,1.94209125,235.44,235.36,1.94209125]
[1759768950662,104.2,235.43,235.36,1.94209125]
[1759768951068,104.2,235.43,235.3,3.8229]
[1759768951069,104.2,235.43,235.33,1.94209125]
[1759768952168,104.2,235.43,235.3,7.52]
[1759768952372,104.2,235.43,235.33,1.94209125]
[1759768952573,104.2,235.42,235.36,9.46209125]
[1759768952773,104.2,235.41,235.39,9.46209125]
[1759768952972,104.2,235.42,235.39,9.46209125]
[1759768953574,104.22675887,235.42,235.39,9.46209125]
[1759768953969,104.22675887,235.42,235.39,1.94209125]
[1759768954167,0.02675887,235.42,235.41,7.52]
[1759768954363,0.02675887,235.42,235.41,1.94209125]
[1759768954567,0.02675887,235.42,235.33,59.4612]
[1759768954872,0.02675887,235.42,235.41,9.46209125]
[1759768956366,0.02675887,235.42,235.41,13.28329125]
[1759768957374,0.02675887,235.42,235.41,11.3412]
[1759768957574,0.02675887,235.42,235.41,13.28329125]
[1759768958770,0.02675887,235.42,235.41,7.52]
[1759768958974,0.02675887,235.42,235.41,1.94209125]
[1759768960376,0.02675887,235.42,235.41,9.39209125]
[1759768961173,0.02675887,235.42,235.39,11.2715]
[1759768961375,0.02675887,235.42,235.41,1.94209125]
[1759768961872,0.02675887,235.42,235.41,9.39209125]
[1759768962178,0.02675887,235.42,235.41,13.21329125]
[1759768971787,0.02675887,235.42,235.41,16.74996899]
[1759768972188,0.02675887,235.42,235.41,13.21329125]
[1759768972580,0.02675887,235.42,235.41,16.7640786]
[1759768973183,0.02675887,235.42,235.41,11.2712]
[1759768973580,104.2,235.49,235.48,7.94]
[1759768973981,104.2,235.49,235.43,3.55314648]
[1759768974185,104.2,235.49,235.43,11.49314648]
[1759768974383,104.2,235.49,235.42,3.55314648]
[1759768974579,104.2,235.49,235.41,3.55314648]
[1759768974783,104.2,235.49,235.4,3.55314648]
[1759768974981,108.02,235.49,235.41,3.821]
[1759768975186,104.2,235.49,235.43,0.02828737]
[1759768975787,108.0199,235.49,235.43,0.02828737]
[1759768976188,108.0199,235.49,235.43,3.58143385]
[1759768976892,108.0199,235.49,235.44,3.55314648]
[1759768977092,108.0199,235.49,235.45,3.55314648]
[1759768977894,104.2,235.49,235.46,3.55314648]
[1759768978093,309.46,235.54,235.47,3.55314648]
[1759768978290,104.18,235.53,235.47,3.55314648]
[1759768979195,104.18,235.53,235.48,0.03214307]
[1759768979394,309.46,235.54,235.49,7.94]
[1759768979592,104.18,235.53,235.49,3.55314648]
[1759768980292,107.9994,235.53,235.49,3.55314648]
[1759768980688,104.18,235.53,235.49,11.49314648]
[1759768981195,104.18,235.53,235.49,3.55314648]
[1759768982499,104.18,235.53,235.49,11.49314648]
[1759768982700,104.18,235.53,235.49,7.94]
[1759768982893,104.18,235.53,235.51,7.94]
[1759768983094,104.18,235.53,235.52,3.55314648]
[1759768983296,104.18,235.53,235.51,11.49314648]
[1759768983998,104.18,235.53,235.52,7.94]
[1759768984401,104.18,235.53,235.52,11.49314648]
[1759768984599,3.02893369,235.61,235.54,3.8189]
[1759768984801,42.98,235.6,235.55,3.56915681]
[1759768985003,42.98,235.6,235.55,11.50915681]
[1759768985202,3.8174,235.65,235.56,3.56915681]
[1759768985393,104.16,235.64,235.55,15.32785681]
[1759768985803,104.16,235.64,235.55,15.35486273]
[1759768986698,104.16,235.64,235.55,11.53616273]
[1759768986900,104.16,235.64,235.56,3.56915681]
[1759768987099,107.9776,235.64,235.56,3.56915681]
[1759768987299,107.9776,235.64,235.55,15.35506273]
[1759768987500,104.16,235.64,235.55,15.35506273]
[1759768987702,104.16,235.64,235.56,3.56915681]
[1759768988393,104.16,235.64,235.55,11.53616273]
[1759768988698,3.02893369,235.67,235.55,11.53616273]
[1759768988699,104.14,235.63,235.57,3.56915681]
[1759768989902,104.14,235.63,235.58,7.96822947]
[1759768990104,104.14,235.63,235.59,7.94]
[1759768991200,104.14,235.63,235.58,0.02822947]
[1759768992604,3.8178,235.62,235.58,0.02822947]
[1759768994404,3.8181,235.61,235.58,0.02822947]
[1759768994907,3.8182,235.59,235.58,0.02822947]
[1759768996307,4.2382,235.59,235.58,0.02822947]
[1759768996608,3.8192,235.54,235.48,3.56915681]
[1759768996805,104.12,235.53,235.46,11.50915681]
[1759768997003,104.12,235.53,235.46,7.94]
[1759768997206,3.8195,235.52,235.45,3.56915681]
[1759768998097,104.12,235.53,235.44,3.56915681]
[1759768998303,0.02802428,235.51,235.43,3.56915681]
[1759768998715,0.02802428,235.51,235.44,3.56915681]
[1759768999311,0.02802428,235.51,235.43,3.56915681]
[1759768999506,0.02802428,235.51,235.44,3.56915681]
[1759769000108,3.84772428,235.51,235.44,3.56915681]
[1759769000911,3.8199,235.49,235.43,3.56915681]
[1759769001713,0.02802428,235.51,235.43,3.56915681]
[1759769002607,0.02802428,235.51,235.45,3.56915681]
[1759769002805,0.02802428,235.51,235.48,3.56915681]
[1759769003004,0.02802428,235.51,235.5,7.6]
[1759769004606,0.02802428,235.51,235.48,7.38905681]
[1759769004813,0.02802428,235.51,235.49,7.6]
[1759769005014,0.02802428,235.51,235.48,3.56915681]
[1759769005211,0.02802428,235.51,235.48,11.16915681]
[1759769005411,0.02802428,235.51,235.46,3.56915681]
[1759769006513,0.02802428,235.51,235.46,11.16915681]
[1759769006817,0.02802428,235.51,235.47,7.6]
[1759769007816,3.84772428,235.51,235.46,3.56915681]
[1759769008018,3.84772428,235.51,235.46,7.6]
[1759769009712,3.84772428,235.51,235.45,11.16915681]
[1759769010612,3.84772428,235.51,235.46,11.16915681]
[1759769010913,3.84772428,235.51,235.46,7.6]
[1759769011310,3.84772428,235.51,235.46,11.16915681]
[1759769012320,3.8198,235.5,235.46,11.16915681]
[1759769012516,0.02802428,235.51,235.47,7.6]
[1759769013422,3.84772428,235.51,235.47,7.6]
[1759769014222,3.84772428,235.51,235.45,3.56915681]
[1759769014418,3.84772428,235.51,235.47,7.6]
[1759769016915,0.02802428,235.51,235.47,11.4202]
[1759769017116,0.02802428,235.51,235.48,3.56915681]
[1759769017315,0.02802428,235.51,235.49,7.37]
[1759769017509,0.02802428,235.51,235.47,10.93915681]
[1759769018314,3.84772428,235.51,235.47,7.37]
[1759769019114,0.02802428,235.51,235.47,7.37]
[1759769019317,0.02802428,235.51,235.46,3.56915681]
[1759769019716,0.02802428,235.51,235.47,7.37]
[1759769020118,0.02802428,235.51,235.46,3.56915681]
[1759769020722,0.02802428,235.51,235.47,7.37]
[1759769021615,0.02802428,235.51,235.46,3.56915681]
[1759769022124,0.02802428,235.51,235.47,7.37]
[1759769022924,0.02802428,235.51,235.46,3.56915681]
[1759769023324,0.02802428,235.51,235.47,7.37]
[1759769024324,0.02802428,235.51,235.46,3.56915681]
[1759769024825,0.02802428,235.51,235.47,7.37]
[1759769025021,0.02802428,235.51,235.49,3.56915681]
[1759769025219,0.02802428,235.51,235.5,10.93915681]
[1759769027125,0.02802428,235.51,235.5,7.37]
[1759769029226,0.02802428,235.51,235.49,3.56915681]
[1759769029428,0.02802428,235.51,235.48,3.56915681]
[1759769029728,0.02802428,235.51,235.46,7.73]
[1759769029729,0.02802428,235.51,235.46,11.29915681]
[1759769029929,3.82,235.49,235.46,11.29915681]
[1759769030224,0.02802428,235.51,235.46,3.56915681]
[1759769030425,0.02802428,235.51,235.45,3.56915681]
[1759769031130,0.02802428,235.51,235.44,3.56915681]
[1759769031330,3.8199,235.49,235.44,3.56915681]
[1759769031533,0.02802428,235.51,235.46,7.73]
[1759769032733,0.02802428,235.51,235.44,3.56915681]
[1759769033333,3.8199,235.49,235.44,3.56915681]
[1759769033534,3.8199,235.49,235.46,11.29915681]
[1759769033734,3.8199,235.49,235.46,3.56915681]
[1759769034436,3.8199,235.49,235.48,7.73]
[1759769035138,104.12,235.5,235.48,7.73]
[1759769036135,104.12,235.5,235.47,3.56915681]
[1759769036331,104.12,235.5,235.49,7.73]
[1759769037138,104.12,235.5,235.48,3.56915681]
[1759769037339,0.02802428,235.51,235.48,4.74893856]
[1759769037534,0.02802428,235.51,235.5,7.73]
[1759769039234,0.02802428,235.51,235.5,12.47893856]
[1759769041236,7.6333,235.7,235.5,7.73]
[1759769041531,104.12,235.61,235.57,3.57372635]
[1759769041736,104.12,235.61,235.59,7.73]
[1759769042133,107.9381,235.61,235.58,3.57372635]
[1759769042336,107.9381,235.61,235.58,7.73]
[1759769042734,107.9381,235.61,235.58,7.75804367]
[1759769042934,7.6333,235.7,235.58,7.75804367]
[1759769042935,3.8176,235.63,235.59,7.73]
[1759769043138,3.8176,235.63,235.58,3.60177002]
[1759769043334,3.8176,235.63,235.59,7.73]
[1759769043644,3.8176,235.63,235.61,7.73]
[1759769044045,104.12,235.64,235.61,7.73]
[1759769044237,104.12,235.64,235.61,11.30372635]
[1759769044442,104.12,235.64,235.61,7.73]
[1759769044843,104.12,235.64,235.6,3.57372635]
[1759769045043,104.12,235.64,235.61,3.57372635]
[1759769045247,104.12,235.64,235.6,3.57372635]
[1759769045545,104.12,235.64,235.62,7.73]
[1759769047746,104.12,235.64,235.61,3.57372635]
[1759769048050,104.12,235.64,235.62,7.73]
[1759769048656,104.12,235.64,235.61,11.30372635]
[1759769048951,104.12,235.64,235.62,7.73]
[1759769052951,104.12,235.64,235.61,9.6684428]
[1759769053148,104.12,235.64,235.61,1.9384428]
[1759769053348,3.8171,235.67,235.62,7.73]
[1759769053554,3.8171,235.67,235.61,9.6684428]
[1759769053960,3.8171,235.67,235.62,1.9384428]
[1759769054251,104.06,235.7,235.63,7.73]
[1759769054252,3.8166,235.69,235.63,7.73]
[1759769055352,3.8166,235.69,235.64,0.03168101]
[1759769055549,3.8166,235.69,235.64,7.76168101]
[1759769055751,3.8158,235.75,235.68,7.73]
[1759769055955,3.8158,235.75,235.7,9.6684428]
[1759769056456,3.8154,235.77,235.7,9.6684428]
[1759769057060,104.06,235.79,235.7,0.03037131]
[1759769057254,1.9384428,235.74,235.7,0.03037131]
[1759769057556,3.8157,235.75,235.7,0.03037131]
[1759769058555,3.8161,235.73,235.7,0.03037131]
[1759769059256,3.8161,235.73,235.7,7.82037131]
[1759769060252,3.8161,235.73,235.7,0.03037131]
[1759769061053,107.8561,235.73,235.7,0.03037131]
[1759769062952,3.8163,235.71,235.7,0.03037131]
[1759769066950,6.1747428,235.71,235.7,0.03037131]
[1759769068262,3.8174,235.65,235.59,7.79]
[1759769068458,104.02,235.64,235.58,9.7284428]
[1759769068656,104.02,235.64,235.61,1.9384428]
[1759769068855,104.02,235.64,235.56,7.79]
[1759769069058,104.02,235.64,235.62,7.79]
[1759769069258,104.02,235.64,235.61,1.9384428]
[1759769069664,104.02,235.64,235.62,7.79]
[1759769073365,104.02,235.64,235.61,1.9384428]
[1759769073562,0.02940583,235.65,235.61,1.9384428]
[1759769073767,0.02940583,235.65,235.64,9.7284428]
[1759769074670,0.02940583,235.65,235.64,13.5458428]
[1759769079469,0.02940583,235.65,235.64,17.53956915]
[1759769080271,0.02940583,235.65,235.64,13.9658428]
[1759769080573,3.8155,235.77,235.69,11.3665]
[1759769080768,323.74,235.76,235.69,13.3049428]
[1759769081273,14.82,235.76,235.69,13.3049428]
[1759769081469,14.82,235.76,235.69,11.3665]
[1759769081665,14.82,235.76,235.69,13.3049428]
[1759769081971,14.82,235.76,235.7,0.0293978]
[1759769083165,18.6356,235.76,235.7,0.0293978]
[1759769083573,1.9384428,235.85,235.73,7.55]
[1759769083772,1.9384428,235.85,235.75,1.9384428]
[1759769083969,3.8148,235.81,235.75,1.9384428]
[1759769084776,3.8148,235.81,235.76,0.02689219]
[1759769085177,3.8143,235.84,235.76,0.02689219]
[1759769085370,3.8143,235.84,235.76,7.57689219]
[1759769086075,104.0,235.83,235.76,7.57689219]
[1759769086473,104.0,235.83,235.76,11.39239219]
[1759769087566,3.8143,235.84,235.76,11.39239219]
[1759769087774,104.0,235.83,235.76,11.39239219]
[1759769088372,107.8145,235.83,235.76,7.57689219]
[1759769088578,105.9384428,235.83,235.76,0.02689219]
[1759769089676,3.8147,235.81,235.76,7.51689219]
[1759769089873,103.98,235.8,235.76,7.51689219]
[1759769091076,103.98,235.8,235.76,0.02689219]
[1759769092575,0.73825005,235.85,235.77,7.49]
[1759769092878,308.9,235.87,235.78,1.9384428]
[1759769092879,103.98,235.84,235.78,1.9384428]
[1759769094074,103.98,235.83,235.78,1.9384428]
[1759769094377,103.98,235.83,235.78,9.4284428]
[1759769094776,3.8143,235.84,235.78,9.4284428]
[1759769095078,107.7743,235.84,235.78,7.49]
[1759769095780,3.8145,235.82,235.76,0.02689219]
[1759769095976,103.96,235.84,235.76,0.02689219]
[1759769096671,3.8148,235.81,235.76,0.02689219]
[1759769097168,104.69827354,235.84,235.76,0.02689219]
[1759769098079,0.73827354,235.84,235.76,0.02689219]
[1759769098376,103.96,235.83,235.76,0.02689219]
[1759769099580,107.7745,235.83,235.76,3.84239219]
[1759769099875,3.8145,235.83,235.76,3.84239219]
[1759769100081,103.96,235.82,235.76,0.02689219]
[1759769100283,3.8148,235.81,235.76,0.02689219]
[1759769100876,103.96,235.8,235.76,0.02689219]
[1759769101676,3.815,235.79,235.76,0.02689219]
[1759769101877,103.96,235.8,235.76,0.02689219]
[1759769103084,103.96,235.79,235.76,0.02689219]
[1759769104581,107.7751,235.79,235.76,0.02689219]
[1759769105884,3.8153,235.78,235.76,0.02689219]
[1759769106578,3.8161,235.73,235.7,3.55079126]
[1759769106782,103.96,235.72,235.68,3.55079126]
[1759769107083,103.96,235.71,235.68,3.55079126]
[1759769107283,103.96,235.7,235.68,3.55079126]
[1759769108076,3.02030729,235.77,235.69,7.49]
[1759769108276,103.96,235.76,235.69,11.04079126]
[1759769108476,103.96,235.75,235.71,7.49]
[1759769108680,103.96,235.75,235.7,3.55079126]
[1759769108681,0.02871142,235.71,235.7,14.85729126]
[1759769109282,0.02871142,235.71,235.7,11.3065]
[1759769110184,3.8149,235.8,235.7,7.91]
[1759769110486,104.0,235.79,235.72,3.55445082]
[1759769110878,104.0,235.79,235.73,3.55445082]
[1759769111077,104.0,235.79,235.72,3.816]
[1759769111078,104.0,235.79,235.72,7.37045082]
[1759769111279,3.8152,235.78,235.72,3.55445082]
[1759769111688,3.8152,235.78,235.73,0.03044547]
[1759769112087,3.8156,235.76,235.73,0.03044547]
[1759769114583,3.8151,235.79,235.73,0.03044547]
[1759769114787,90.22,235.78,235.74,7.49]
[1759769115093,59.3311,235.85,235.74,7.49]
[1759769115282,104.12,235.84,235.74,7.49]
[1759769115678,104.12,235.84,235.73,0.03044547]
[1759769116083,3.8151,235.79,235.73,0.03044547]
[1759769116283,104.12,235.78,235.74,7.49]
[1759769116687,104.12,235.78,235.73,3.58489629]
[1759769116883,3.8147,235.81,235.73,11.07489629]
[1759769117085,104.12,235.8,235.73,11.07489629]
[1759769117478,3.815,235.79,235.73,3.58489629]
[1759769117685,104.12,235.8,235.73,3.58489629]
[1759769118083,3.8153,235.78,235.73,0.03044547]
[1759769118283,3.8153,235.78,235.73,3.58489629]
[1759769118886,3.8153,235.78,235.73,0.03044547]
[1759769119180,3.8155,235.76,235.73,0.03044547]
[1759769120190,3.8155,235.76,235.73,3.58489629]
[1759769120991,3.8158,235.75,235.73,3.58489629]
[1759769121196,104.1,235.74,235.73,0.03044547]
[1759769122694,104.06,235.74,235.73,3.58489629]
[1759769124806,104.04,235.74,235.73,3.58489629]
[1759769125203,104.04,235.74,235.73,0.03044547]
[1759769135515,104.46,235.74,235.73,0.03044547]